bitfinex/quotes_ETHUSD_20230113
["timestamp","ask_amount","ask_price","bid_price","bid_amount"]
[1673620554363,53.13194812,1409.2,1409.1,8.031e-05]
[1673620555275,4.26191969,1409.0,1408.8,0.04891614]
[1673620555520,30.11811469,1408.9,1408.8,0.04891614]
[1673620555728,30.41511469,1408.9,1408.8,0.04891614]
[1673620557426,39.13268919,1408.9,1408.8,0.04891614]
[1673620558359,46.91148919,1408.9,1408.8,0.04891614]
[1673620559165,2.5,1408.8,1408.7,0.04891614]
[1673620559430,49.68485614,1408.8,1408.7,0.04891614]
[1673620559585,71.04654614,1408.8,1408.7,0.04891614]
[1673620560317,66.93497164,1408.8,1408.7,0.04891614]
[1673620561132,65.33497164,1408.8,1408.7,0.04891614]
[1673620562264,5.84599386,1408.7,1408.6,0.07874879]
[1673620562421,4.26,1408.5,1408.3,0.05501525]
[1673620562631,10.36633272,1408.4,1408.3,0.05501525]
[1673620562894,39.06433272,1408.4,1408.3,0.05501525]
[1673620563066,41.10041362,1408.4,1408.3,0.05501525]
[1673620563276,51.65451362,1408.4,1408.3,0.05501525]
[1673620564940,49.15451362,1408.4,1408.3,0.05501525]
[1673620565208,37.79426362,1408.4,1408.3,0.05501525]
[1673620565369,42.05426362,1408.4,1408.3,0.05501525]
[1673620566237,30.69401362,1408.4,1408.3,0.05501525]
[1673620566454,28.42793272,1408.4,1408.3,0.05501525]
[1673620566727,28.42793272,1408.4,1408.3,1.65401525]
[1673620566728,3.67333272,1408.4,1408.3,1.65401525]
[1673620566937,0.07,1408.5,1408.3,1.65401525]
[1673620566938,0.137,1408.5,1408.3,1.65401525]
[1673620567209,3.67633272,1408.5,1408.4,1.598]
[1673620568044,3.67833272,1408.5,1408.4,1.598]
[1673620568354,0.07,1408.5,1408.4,8.86355153]
[1673620568573,0.07,1408.5,1408.4,8.92755153]
[1673620569098,0.07,1408.5,1408.4,10.52055153]
[1673620569678,0.07,1408.5,1408.4,26.72105153]
[1673620570488,0.07,1408.5,1408.4,19.62080153]
[1673620570658,0.07,1408.5,1408.4,8.92255153]
[1673620570983,0.07,1408.5,1408.4,1.657]
[1673620571186,0.07,1408.5,1408.4,1.593]
[1673620572979,0.07,1408.5,1408.4,15.7935]
[1673620573138,0.07,1408.5,1408.4,22.95775]
[1673620573816,40.6532,1408.9,1408.6,7.09914]
[1673620574031,3.60633272,1408.8,1408.6,7.16314]
[1673620574344,0.067,1408.9,1408.7,1.599]
[1673620574554,3.60633272,1408.8,1408.7,1.599]
[1673620575041,0.482,1408.8,1408.7,1.599]
[1673620575504,0.482,1408.8,1408.7,8.69774]
[1673620575716,0.482,1408.8,1408.7,11.20073451]
[1673620576022,0.482,1408.8,1408.7,19.89647451]
[1673620576548,0.482,1408.8,1408.7,27.5411928]
[1673620577286,0.00191969,1409.0,1408.8,9.736]
[1673620577499,0.00191969,1409.0,1408.9,27.00319]
[1673620577817,0.00191969,1409.0,1408.9,33.747509]
[1673620578949,1.41297518,1409.2,1409.0,2.5]
[1673620579192,1.41297518,1409.2,1409.1,10.431]
[1673620579337,1.41297518,1409.2,1409.1,31.78516]
[1673620579548,1.41297518,1409.2,1409.1,34.78516]
[1673620579756,1.41297518,1409.2,1409.1,38.867116]
[1673620580294,1.41297518,1409.2,1409.1,17.444676]
[1673620580506,1.41297518,1409.2,1409.1,6.266]
[1673620580726,1.41297518,1409.2,1409.1,13.36272]
[1673620580946,1.41297518,1409.2,1409.1,10.36272]
[1673620581614,1.41297518,1409.2,1409.1,17.45944]
[1673620581825,1.41297518,1409.2,1409.1,31.79016]
[1673620582050,0.69667518,1409.2,1409.1,38.73231]
[1673620584432,0.69667518,1409.2,1409.1,46.41845757]
[1673620584677,0.14372265,1409.3,1409.2,2.5]
[1673620584874,0.14372265,1409.3,1409.2,40.82799272]
[1673620585079,0.14372265,1409.3,1409.2,30.05466]
[1673620585325,0.14372265,1409.3,1409.2,34.98241905]
[1673620585490,0.14372265,1409.3,1409.2,32.48241905]
[1673620589179,0.14372265,1409.3,1409.2,25.95666]
[1673620590485,0.14372265,1409.3,1409.2,1.668]
[1673620590629,0.14372265,1409.3,1409.2,1.604]
[1673620592120,2.21392265,1409.3,1409.1,0.066]
[1673620592335,8.77756265,1409.3,1409.0,3.0]
[1673620592545,11.45134591,1409.3,1409.0,3.0]
[1673620592940,4.35550591,1409.3,1409.0,10.09721]
[1673620593157,0.14372265,1409.3,1409.1,1.596]
[1673620593486,0.14372265,1409.3,1409.2,15.80044]
[1673620593693,0.14372265,1409.3,1409.2,15.86444]
[1673620594241,0.14372265,1409.3,1409.2,1.672]
[1673620594417,0.14372265,1409.3,1409.2,1.608]
[1673620594629,0.14372265,1409.3,1409.1,1.674]
[1673620594993,0.14372265,1409.3,1409.0,3.066]
[1673620594994,3.60633272,1409.2,1409.0,3.066]
[1673620595153,3.60633272,1409.2,1409.0,10.09721]
[1673620595362,3.60633272,1409.2,1409.0,10.16121]
[1673620597170,3.60633272,1409.2,1409.0,7.16121]
[1673620597583,0.74292265,1409.3,1409.0,25.30200652]
[1673620597794,0.67592265,1409.3,1409.0,25.30200652]
[1673620598740,0.14372265,1409.3,1409.0,25.30200652]
[1673620599200,0.14372265,1409.3,1409.1,1.598]
[1673620599390,0.14372265,1409.3,1409.1,8.69458]
[1673620599597,0.14372265,1409.3,1409.2,1.599]
[1673620599838,0.14372265,1409.3,1409.2,8.69522]
[1673620600032,0.14372265,1409.3,1409.2,8.75922]
[1673620600451,0.14372265,1409.3,1409.2,15.85544]
[1673620600870,0.14372265,1409.3,1409.2,22.95166]
[1673620601083,0.14372265,1409.3,1409.2,25.65987956]
[1673620601783,0.14372265,1409.3,1409.2,8.75922]
[1673620602362,0.14372265,1409.3,1409.2,1.663]
[1673620602516,0.14372265,1409.3,1409.2,1.599]
[1673620603681,3.75005537,1409.3,1409.1,4.602]
[1673620604047,13.34577537,1409.3,1409.1,4.602]
[1673620604237,20.05930391,1409.3,1409.1,1.602]
[1673620606090,20.05930391,1409.3,1409.0,0.066]
[1673620606091,3.60633272,1409.2,1409.0,0.066]
[1673620606318,10.70274272,1409.2,1408.9,7.70490521]
[1673620606640,10.76974272,1409.2,1408.9,7.70490521]
[1673620610427,10.76974272,1409.2,1408.9,9.30290521]
[1673620613407,20.58172411,1409.2,1408.9,9.30290521]
[1673620614183,17.86615272,1409.2,1408.9,11.00354158]
[1673620615045,10.76974272,1409.2,1408.9,11.00354158]
[1673620615397,3.67333272,1409.2,1408.9,23.49836521]
[1673620615619,3.60633272,1409.2,1408.9,25.19900158]
[1673620616238,3.60633272,1409.2,1408.9,26.25577899]
[1673620616764,3.60633272,1409.2,1409.0,3.00208771]
[1673620616958,7.30644265,1409.3,1409.0,15.80224]
[1673620617137,3.81705537,1409.3,1409.0,15.86624]
[1673620617346,3.75005537,1409.3,1409.0,15.86624]
[1673620617557,3.75005537,1409.3,1409.0,22.96347]
[1673620617767,0.14372265,1409.3,1409.1,1.608]
[1673620618019,0.14372265,1409.3,1409.2,15.79444]
[1673620618182,0.14372265,1409.3,1409.2,15.85844]
[1673620618609,0.14372265,1409.3,1409.2,22.95466]
[1673620618952,0.14372265,1409.3,1409.2,25.88118964]
[1673620619167,0.14010715,1409.3,1409.2,27.2749079]
[1673620620201,0.14010715,1409.3,1409.2,28.97580969]
[1673620620811,0.14010715,1409.3,1409.2,20.1786879]
[1673620621026,0.14010715,1409.3,1409.2,15.85844]
[1673620621279,0.14010715,1409.3,1409.2,17.25196175]
[1673620621810,0.14010715,1409.3,1409.2,1.45752175]
[1673620622018,9.30602715,1409.3,1409.1,0.066]
[1673620622228,9.37302715,1409.3,1409.0,22.953]
[1673620622614,15.53440756,1409.3,1409.0,8.75897]
[1673620623197,3.60633272,1409.2,1409.0,0.064]
[1673620623353,4.13863272,1409.1,1408.9,0.54328521]
[1673620623878,11.23544272,1409.1,1408.9,0.54328521]
[1673620624089,15.35802305,1409.1,1408.9,0.54328521]
[1673620624294,8.26121305,1409.1,1408.9,0.54328521]
[1673620624555,4.65488033,1409.1,1408.9,0.54328521]
[1673620624874,4.58788033,1409.1,1408.9,0.54328521]
[1673620627092,8.19421305,1409.1,1408.9,0.54328521]
[1673620627273,4.42575402,1409.0,1408.9,0.54328521]
[1673620627452,18.62021402,1409.0,1408.9,0.54328521]
[1673620627660,18.68721402,1409.0,1408.9,0.54328521]
[1673620627904,25.78444402,1409.0,1408.9,0.54328521]
[1673620628129,39.16030272,1409.0,1408.9,0.54328521]
[1673620628335,45.44561243,1409.0,1408.9,0.54328521]
[1673620628883,42.7995204,1409.0,1408.9,0.54328521]
[1673620629040,38.28159268,1409.0,1408.9,0.54328521]
[1673620629441,42.27135589,1409.0,1408.9,0.54328521]
[1673620629658,40.40686013,1409.0,1408.9,0.54328521]
[1673620630764,38.28159268,1409.0,1408.9,0.54328521]
[1673620631080,34.85331116,1409.0,1408.9,0.54328521]
[1673620631266,33.25941102,1409.0,1408.9,0.54328521]
[1673620632005,37.51941102,1409.0,1408.9,0.54328521]
[1673620632855,36.59279608,1409.0,1408.9,0.54328521]
[1673620633181,13.71938402,1409.0,1408.9,0.54328521]
[1673620633392,12.89996272,1409.0,1408.9,0.54328521]
[1673620634233,5.75273272,1409.0,1408.9,0.54328521]
[1673620634866,12.84996272,1409.0,1408.9,0.54328521]
[1673620635026,19.94719272,1409.0,1408.9,0.54328521]
[1673620635397,31.68100284,1409.0,1408.9,0.54328521]
[1673620635701,24.58377284,1409.0,1408.9,0.54328521]
[1673620635916,17.48654284,1409.0,1408.9,0.54328521]
[1673620636107,12.84996272,1409.0,1408.9,0.54328521]
[1673620636494,19.94719272,1409.0,1408.9,0.54328521]
[1673620636913,12.84996272,1409.0,1408.9,0.54328521]
[1673620637185,12.84996272,1409.0,1408.9,1.75028521]
[1673620637186,5.22033272,1409.0,1408.9,1.75028521]
[1673620638430,5.22033272,1409.0,1408.9,0.54328521]
[1673620639545,1.664,1409.0,1408.9,16.83637373]
[1673620639808,1.597,1409.0,1408.9,25.19510373]
[1673620641245,1.597,1409.0,1408.9,26.54498592]
[1673620642966,1.597,1409.0,1408.9,30.60176333]
[1673620643155,10.89320715,1409.3,1409.0,2.93477608]
[1673620643156,0.20710715,1409.3,1409.0,2.93477608]
[1673620643338,0.14010715,1409.3,1409.2,16.59744]
[1673620643547,0.14010715,1409.3,1409.2,16.65144]
[1673620644859,0.14010715,1409.3,1409.2,9.55522]
[1673620645374,5.28443987,1409.3,1409.2,1.261]
[1673620645563,5.30143987,1409.3,1409.2,1.207]
[1673620645742,3.76343987,1409.3,1409.2,1.207]
[1673620645949,3.69643987,1409.3,1409.2,1.207]
[1673620646752,0.09010715,1409.3,1409.2,9.44019]
[1673620646933,0.09010715,1409.3,1409.2,9.49419]
[1673620648374,0.09010715,1409.3,1409.2,8.35722]
[1673620649632,5.23443987,1409.3,1409.2,1.261]
[1673620649996,5.23443987,1409.3,1409.1,10.10844]
[1673620649997,5.30143987,1409.3,1409.1,11.36044]
[1673620650210,3.76343987,1409.3,1409.1,11.34844]
[1673620650525,3.69643987,1409.3,1409.1,11.34844]
[1673620650929,3.69643987,1409.3,1409.1,21.16476361]
[1673620653103,0.09010715,1409.3,1409.1,21.16476361]
[1673620653320,0.09010715,1409.3,1409.1,28.26148361]
[1673620653539,0.09010715,1409.3,1409.2,1.207]
[1673620653753,0.09010715,1409.3,1409.2,22.49566]
[1673620653975,0.09010715,1409.3,1409.2,25.37778636]
[1673620655147,0.09010715,1409.3,1409.2,15.45344]
[1673620655358,1.62810715,1409.3,1409.2,1.261]
[1673620655568,1.62810715,1409.3,1409.2,1.207]
[1673620655882,5.23443987,1409.3,1409.1,1.273]
[1673620656097,12.55997058,1409.3,1409.0,22.99859608]
[1673620656324,12.55997058,1409.3,1409.0,22.98659608]
[1673620656325,0.00283119,1409.1,1409.0,22.98659608]
[1673620657622,0.00283119,1409.1,1409.0,24.19359608]
[1673620657999,0.00283119,1409.1,1409.0,27.77839186]
[1673620662050,0.00283119,1409.1,1409.0,26.57139186]
[1673620662984,0.00283119,1409.1,1409.0,27.85427783]
[1673620663822,0.00283119,1409.1,1409.0,29.06127783]
[1673620664034,0.00283119,1409.1,1409.0,33.6783064]
[1673620666349,0.00283119,1409.1,1409.0,34.8853064]
[1673620666553,0.00283119,1409.1,1409.0,33.26827783]
[1673620667026,0.00283119,1409.1,1409.0,29.64727783]
[1673620667231,0.00283119,1409.1,1409.0,32.05527783]
[1673620668348,0.00283119,1409.1,1409.0,30.77239186]
[1673620668761,0.00283119,1409.1,1409.0,28.36439186]
[1673620668983,0.00283119,1409.1,1409.0,33.67758357]
[1673620672488,1.5386355,1409.1,1409.0,24.19259608]
[1673620673867,1.5386355,1409.1,1409.0,8.79258608]
[1673620674031,1.5386355,1409.1,1409.0,2.21142752]
[1673620674228,1.5386355,1409.1,1409.0,2.15742752]
[1673620675182,5.14496822,1409.1,1409.0,2.15742752]
[1673620675388,5.83263689,1409.1,1409.0,0.95042752]
[1673620675616,6.89435537,1409.1,1409.0,0.95042752]
[1673620675843,14.9891179,1409.1,1409.0,0.95042752]
[1673620676438,30.77645804,1409.1,1409.0,0.95042752]
[1673620676810,31.78347058,1409.1,1409.0,0.95042752]
[1673620676967,8.89941044,1409.1,1409.0,0.95042752]
[1673620677177,7.8923979,1409.1,1409.0,0.95042752]
[1673620677626,15.04438254,1409.1,1409.0,0.95042752]
[1673620677836,27.6439224,1409.1,1409.0,0.95042752]
[1673620678061,23.14811508,1409.1,1409.0,0.95042752]
[1673620678291,21.07938406,1409.1,1409.0,0.95042752]
[1673620678750,31.30838405,1409.1,1409.0,0.95042752]
[1673620679117,48.20448391,1409.1,1409.0,0.95042752]
[1673620680998,14.9887183,1409.1,1409.0,0.95042752]
[1673620681212,14.42297785,1409.1,1409.0,0.95042752]
[1673620682530,12.83003601,1409.1,1409.0,0.95042752]
[1673620682736,12.29773601,1409.1,1409.0,0.95042752]
[1673620682993,5.20101601,1409.1,1409.0,0.95042752]
[1673620683842,12.29773601,1409.1,1409.0,0.95042752]
[1673620684002,15.95163579,1409.1,1409.0,0.95042752]
[1673620684210,15.41933579,1409.1,1409.0,0.95042752]
[1673620684420,15.95163579,1409.1,1409.0,0.95042752]
[1673620684680,8.32261579,1409.1,1409.0,0.95042752]
[1673620684841,5.20101601,1409.1,1409.0,0.95042752]
[1673620685060,3.67333272,1409.1,1409.0,0.95042752]
[1673620685258,3.60633272,1409.1,1409.0,0.95042752]
[1673620685469,17.92190514,1409.2,1409.0,0.95042752]
[1673620685470,9.7647533,1409.2,1409.0,0.95042752]
[1673620685715,9.7647533,1409.2,1409.0,10.14768636]
[1673620685716,0.067,1409.2,1409.0,10.14768636]
[1673620685932,11.74144791,1409.3,1409.1,2.414]
[1673620686208,1.21904791,1409.3,1409.2,2.414]
[1673620686420,1.15204791,1409.3,1409.2,2.414]
[1673620686635,1.15204791,1409.3,1409.1,7.16271]
[1673620686839,1.61740611,1409.3,1409.1,10.79844764]
[1673620687147,1.15204791,1409.3,1409.1,10.79844764]
[1673620687260,2.74498975,1409.3,1409.1,10.79844764]
[1673620687477,4.66827348,1409.2,1409.1,0.054]
[1673620687679,5.13372651,1409.2,1409.0,2.14842752]
[1673620687938,13.42445532,1409.2,1409.0,0.95042752]
[1673620688157,6.10633272,1409.1,1409.0,0.95042752]
[1673620688323,32.88611178,1409.1,1409.0,0.95042752]
[1673620688539,52.68542432,1409.1,1409.0,0.95042752]
[1673620688766,51.85348356,1409.1,1409.0,0.95042752]
[1673620689196,52.91470544,1409.1,1409.0,0.95042752]
[1673620689391,51.85348356,1409.1,1409.0,0.95042752]
[1673620690098,55.03639242,1409.1,1409.0,0.95042752]
[1673620690307,59.09845936,1409.1,1409.0,0.95042752]
[1673620690774,55.03639242,1409.1,1409.0,0.95042752]
[1673620691042,52.38580917,1409.1,1409.0,0.95042752]
[1673620691310,56.44787611,1409.1,1409.0,0.95042752]
[1673620691702,52.38580917,1409.1,1409.0,0.95042752]
[1673620692130,55.03639242,1409.1,1409.0,0.95042752]
[1673620692971,53.9770814,1409.1,1409.0,0.95042752]
[1673620694776,52.38580917,1409.1,1409.0,0.95042752]
[1673620695520,51.85108546,1409.1,1409.0,0.95042752]
[1673620695888,52.38580917,1409.1,1409.0,0.95042752]
[1673620696251,55.03639242,1409.1,1409.0,0.95042752]
[1673620696834,52.38580917,1409.1,1409.0,0.95042752]
[1673620697289,53.97590201,1409.1,1409.0,0.95042752]
[1673620697966,53.97590201,1409.1,1409.0,0.94776517]
[1673620698106,52.38580917,1409.1,1409.0,0.94776517]
[1673620698321,59.09339943,1409.1,1409.0,0.94776517]
[1673620698590,55.52760201,1409.1,1409.0,0.94776517]
[1673620699003,58.52760201,1409.1,1409.0,0.94776517]
[1673620699222,59.51018784,1409.1,1409.0,0.94776517]
[1673620699745,4.26,1408.9,1408.5,0.126]
[1673620699959,21.86633272,1408.7,1408.3,0.05501525]
[1673620700281,27.40435272,1408.6,1408.3,0.05501525]
[1673620700419,3.60633272,1408.5,1408.3,0.05501525]
[1673620700632,10.70658272,1408.4,1408.3,0.05501525]
[1673620700898,10.77358272,1408.4,1408.3,0.05501525]
[1673620701105,3.67333272,1408.4,1408.3,0.05501525]
[1673620701277,3.60633272,1408.4,1408.3,0.05501525]
[1673620702366,12.49390599,1408.4,1408.3,0.05501525]
[1673620702578,12.56090599,1408.4,1408.3,0.05501525]
[1673620702734,26.76140599,1408.4,1408.3,0.05501525]
[1673620703811,12.56090599,1408.4,1408.3,0.05501525]
[1673620704044,10.77358272,1408.4,1408.3,0.05501525]
[1673620705258,17.87383272,1408.4,1408.3,0.05501525]
[1673620705493,29.23408272,1408.4,1408.3,0.05501525]
[1673620705782,29.46408272,1408.4,1408.3,0.05501525]
[1673620707069,43.46408272,1408.4,1408.3,0.05501525]
[1673620707259,46.47703851,1408.4,1408.3,0.05501525]
[1673620708125,42.21703851,1408.4,1408.3,0.05501525]
[1673620708350,34.88678851,1408.4,1408.3,0.05501525]
[1673620709386,41.98703851,1408.4,1408.3,0.05501525]
[1673620715780,46.24703851,1408.4,1408.3,0.05501525]
[1673620715994,50.27888589,1408.4,1408.3,0.05501525]
[1673620716253,54.04148589,1408.4,1408.3,0.05501525]
[1673620716584,51.61677455,1408.4,1408.3,0.05501525]
[1673620716887,55.10009342,1408.4,1408.3,0.05501525]
[1673620717271,54.04031234,1408.4,1408.3,0.05501525]
[1673620717435,50.00963851,1408.4,1408.3,0.05501525]
[1673620720221,55.64797694,1408.4,1408.3,0.0103076]
[1673620720477,51.06941959,1408.4,1408.3,0.0103076]
[1673620720803,55.64797994,1408.4,1408.3,0.0103076]
[1673620720974,60.09015804,1408.4,1408.3,0.0103076]
[1673620721187,59.02356577,1408.4,1408.3,0.0103076]
[1673620721374,55.64837168,1408.4,1408.3,0.0103076]
[1673620721747,50.00963851,1408.4,1408.3,0.0103076]
[1673620722639,55.10125423,1408.4,1408.3,0.0103076]
[1673620722848,55.6482129,1408.4,1408.3,0.0103076]
[1673620723058,51.61637826,1408.4,1408.3,0.0103076]
[1673620723313,51.06941959,1408.4,1408.3,0.0103076]
[1673620724158,50.00963851,1408.4,1408.3,0.0103076]
[1673620726888,51.61487007,1408.4,1408.3,0.0103076]
[1673620727047,54.27077375,1408.4,1408.3,0.0103076]
[1673620727259,51.61487007,1408.4,1408.3,0.0103076]
[1673620727481,51.06941959,1408.4,1408.3,0.0103076]
[1673620727711,51.61526814,1408.4,1408.3,0.0103076]
[1673620728528,58.3026311,1408.4,1408.3,0.0103076]
[1673620728783,59.36241217,1408.4,1408.3,0.0103076]
[1673620728995,59.36128716,1408.4,1408.3,0.0103076]
[1673620729306,57.77274056,1408.4,1408.3,0.0103076]
[1673620729500,61.40477908,1408.4,1408.3,0.00129405]
[1673620729679,58.75532639,1408.4,1408.3,0.00129405]
[1673620729891,61.40477908,1408.4,1408.3,0.00129405]
[1673620730209,62.88744022,1408.4,1408.3,0.00129405]
[1673620730749,5.8,1408.2,1408.1,0.08082824]
[1673620730940,4.26,1408.0,1407.7,0.08115758]
[1673620731162,4.26,1407.8,1407.7,0.08115758]
[1673620731530,29.40617272,1407.8,1407.7,0.08115758]
[1673620731672,34.53076699,1407.8,1407.7,0.08115758]
[1673620732036,17.87989272,1407.8,1407.7,0.08115758]
[1673620732194,10.77661272,1407.8,1407.7,0.08115758]
[1673620732940,17.87989272,1407.8,1407.7,0.08115758]
[1673620733147,24.98317272,1407.8,1407.7,0.08115758]
[1673620733630,3.67333272,1407.8,1407.7,0.08115758]
[1673620733794,18.18022599,1407.8,1407.7,0.08115758]
[1673620734141,43.60830073,1407.8,1407.7,0.08115758]
[1673620734359,43.83830073,1407.8,1407.7,0.08115758]
[1673620737301,46.83830073,1407.8,1407.7,0.08115758]
[1673620738503,46.47096746,1407.8,1407.7,0.08115758]
[1673620739941,47.53094661,1407.8,1407.7,0.08115758]
[1673620740242,48.60996154,1407.8,1407.7,0.08115758]
[1673620740393,48.06374661,1407.8,1407.7,0.08115758]
[1673620741237,48.61004253,1407.8,1407.7,0.08115758]
[1673620741448,54.56106131,1407.8,1407.7,0.08115758]
[1673620741704,55.62828061,1407.8,1407.7,0.08115758]
[1673620741863,57.21824933,1407.8,1407.7,0.08115758]
[1673620742073,55.62828061,1407.8,1407.7,0.08115758]
[1673620742329,54.56106131,1407.8,1407.7,0.08115758]
[1673620742487,55.62797323,1407.8,1407.7,0.08115758]
[1673620743132,57.21794195,1407.8,1407.7,0.01528392]
[1673620743349,59.65710584,1407.8,1407.7,0.01528392]
[1673620743562,61.24707456,1407.8,1407.7,0.01528392]
[1673620744238,60.18709541,1407.8,1407.7,0.01528392]
[1673620744628,72.73245371,1407.8,1407.7,0.01528392]
[1673620744847,71.14248499,1407.8,1407.6,0.06780806]
[1673620745016,32.67716,1407.6,1407.5,0.08115758]
[1673620745226,50.35049272,1407.6,1407.5,0.08115758]
[1673620745470,50.58049272,1407.6,1407.5,0.08115758]
[1673620745906,69.23079272,1407.6,1407.5,0.08115758]
[1673620746065,71.45995521,1407.6,1407.5,0.08115758]
[1673620746275,77.09056165,1407.6,1407.5,0.08115758]
[1673620746537,80.62346165,1407.6,1407.5,0.08115758]
[1673620747114,28.07437,1407.5,1407.4,3.7e-06]
[1673620747326,50.25622554,1407.5,1407.3,0.08847254]
[1673620747599,48.97085527,1407.4,1407.3,0.08847254]
[1673620747809,49.03785527,1407.4,1407.3,0.08847254]
[1673620748923,48.50485527,1407.4,1407.3,0.08847254]
[1673620749493,25.21923272,1407.4,1407.3,1.28947254]
[1673620749712,24.98923272,1407.4,1407.3,1.28947254]
[1673620750077,29.24923272,1407.4,1407.3,1.28947254]
[1673620752396,29.24923272,1407.4,1407.3,0.08847254]
[1673620752638,35.4302515,1407.4,1407.3,0.08847254]
[1673620752809,39.45894466,1407.4,1407.3,0.08847254]
[1673620753705,35.4302515,1407.4,1407.3,0.08847254]
[1673620754075,39.4581105,1407.4,1407.3,0.08847254]
[1673620754284,46.92570744,1407.4,1407.3,0.08847254]
[1673620754489,42.45770744,1407.4,1407.3,0.08847254]
[1673620755348,38.4302515,1407.4,1407.3,0.08847254]
[1673620755963,38.2002515,1407.4,1407.3,0.08847254]
[1673620757556,38.4302515,1407.4,1407.3,0.08847254]
[1673620760087,29.47923272,1407.4,1407.3,0.08847254]
[1673620760311,3.67333272,1407.4,1407.3,1.29547254]
[1673620760493,10.71163272,1407.4,1407.3,1.29547254]
[1673620760704,10.77863272,1407.4,1407.3,1.29547254]
[1673620760929,3.67333272,1407.4,1407.3,2.50247254]
[1673620761164,0.067,1407.5,1407.3,2.87261979]
[1673620761384,3.60633272,1407.5,1407.4,2.405]
[1673620761715,10.71112272,1407.5,1407.4,2.405]
[1673620762016,17.88291272,1407.5,1407.4,1.207]
[1673620762171,22.14291272,1407.5,1407.3,1.28947254]
[1673620762382,24.57693272,1407.4,1407.3,1.28947254]
[1673620762632,24.64393272,1407.4,1407.3,1.28947254]
[1673620762849,38.87393272,1407.4,1407.3,1.28947254]
[1673620763064,36.37393272,1407.4,1407.3,1.28947254]
[1673620763390,43.47923272,1407.4,1407.3,0.08847254]
[1673620763563,48.11958102,1407.4,1407.3,0.08847254]
[1673620764695,66.76988102,1407.4,1407.3,0.08847254]
[1673620768706,66.76988102,1407.4,1407.3,0.08459771]
[1673620770719,22.32363272,1407.4,1407.3,2.66459771]
[1673620771148,10.77863272,1407.4,1407.3,1.28359771]
[1673620772938,24.98923272,1407.4,1407.3,1.28359771]
[1673620773255,33.09736474,1407.4,1407.3,1.28359771]
[1673620773466,33.32736474,1407.4,1407.3,1.28359771]
[1673620774996,34.38685427,1407.4,1407.3,1.28359771]
[1673620775208,33.32736474,1407.4,1407.3,1.28359771]
[1673620775431,18.11393272,1407.4,1407.3,1.28359771]
[1673620775652,10.77863272,1407.4,1407.3,1.28359771]
[1673620777306,32.67424874,1407.4,1407.3,1.28359771]
[1673620777549,32.15354023,1407.4,1407.3,0.08459771]
[1673620777757,36.50358369,1407.4,1407.3,0.08459771]
[1673620778183,52.09282978,1407.4,1407.3,0.08459771]
[1673620778356,50.50358369,1407.4,1407.3,0.08459771]
[1673620779243,51.03334025,1407.4,1407.3,0.08459771]
[1673620780361,52.09735736,1407.4,1407.3,0.08459771]
[1673620780575,33.74731134,1407.4,1407.3,0.08459771]
[1673620780778,26.64201134,1407.4,1407.3,0.08459771]
[1673620781241,24.82276525,1407.4,1407.3,0.08459771]
[1673620781771,5.28362767,1407.4,1407.3,0.08459771]
[1673620782199,5.28362767,1407.4,1407.3,1.29159771]
[1673620782509,12.38892767,1407.4,1407.3,1.29159771]
[1673620782734,13.45746525,1407.4,1407.3,1.29159771]
[1673620783242,15.04709862,1407.4,1407.3,1.29159771]
[1673620783455,20.27571878,1407.4,1407.3,1.29159771]
[1673620784348,27.38101878,1407.4,1407.3,1.29159771]
[1673620784558,12.38931495,1407.4,1407.3,1.29159771]
[1673620784820,5.28401495,1407.4,1407.3,2.49759771]
[1673620785733,3.67333272,1407.4,1407.3,2.49759771]
[1673620785940,4.67073455,1407.4,1407.3,2.49759771]
[1673620786373,3.60633272,1407.4,1407.3,2.49759771]
[1673620788667,3.79090496,1407.5,1407.3,2.49759771]
[1673620789040,6.25998064,1407.5,1407.4,2.414]
[1673620789243,5.28429813,1407.5,1407.4,2.414]
[1673620791012,4.73773455,1407.5,1407.4,4.914]
[1673620791330,3.60633272,1407.5,1407.4,14.65747977]
[1673620791569,3.60633272,1407.5,1407.4,12.21147977]
[1673620791706,3.60633272,1407.5,1407.4,12.20775641]
[1673620792561,1.13140183,1407.6,1407.4,20.51305641]
[1673620792771,23.97116494,1407.8,1407.6,14.20858]
[1673620792991,3.73161885,1407.8,1407.6,14.26258]
[1673620793202,2.59436181,1407.8,1407.6,14.26258]
[1673620793444,4.6419065,1407.8,1407.7,1.426258]
[1673620793599,3.05266041,1407.8,1407.7,1.426258]
[1673620794069,3.05266041,1407.8,1407.7,11.030038]
[1673620794235,3.05266041,1407.8,1407.7,18.187818]
[1673620794450,1.52995998,1407.8,1407.7,18.187818]
[1673620794678,1.52995998,1407.8,1407.7,24.808818]
[1673620795930,1.52995998,1407.8,1407.7,31.912598]
[1673620798253,1.13140183,1408.1,1407.8,2.5]
[1673620798471,3.60633272,1408.1,1408.0,21.30681]
[1673620798689,3.60633272,1408.1,1408.0,21.36081]
[1673620798857,3.60633272,1408.1,1408.0,14.25854]
[1673620799062,5.05985802,1408.1,1408.0,0.054]
[1673620799320,5.1268625,1408.1,1407.9,21.61219]
[1673620799499,4.73773455,1408.1,1408.0,2.414]
[1673620799705,5.0598601,1408.1,1408.0,2.414]
[1673620799918,4.73773455,1408.1,1408.0,2.414]
[1673620800170,4.67073455,1408.1,1408.0,2.414]
[1673620800400,3.60633272,1408.1,1408.0,16.61854]
[1673620800576,2.81305544,1408.2,1408.0,19.076359]
[1673620800790,4.76314207,1408.2,1408.1,1.199]
[1673620801114,5.15242245,1408.2,1408.1,8.30076]
[1673620801280,5.21942245,1408.2,1408.1,8.35476]
[1673620801482,5.21942245,1408.2,1408.1,10.9729719]
[1673620801902,0.15940752,1408.2,1408.1,30.0774919]
[1673620802112,0.15940752,1408.2,1408.1,29.3734919]
[1673620802113,0.09240752,1408.2,1408.1,29.3734919]
[1673620803949,0.09240752,1408.2,1408.1,30.5704919]
[1673620804741,30.447,1408.5,1408.2,5.55704919]
[1673620804742,0.067,1408.5,1408.2,5.55704919]
[1673620804956,0.09989133,1408.6,1408.4,9.062]
[1673620805181,0.09989133,1408.6,1408.4,29.8596]
[1673620805493,0.09989133,1408.6,1408.5,20.18546]
[1673620805848,0.09989133,1408.6,1408.5,20.23946]
[1673620806995,0.09989133,1408.6,1408.5,29.75321]
[1673620809146,0.09989133,1408.6,1408.5,30.96021]
[1673620810832,0.09989133,1408.6,1408.5,35.27025376]
[1673620811038,0.09987857,1408.9,1408.6,2.5]
[1673620811267,0.09987857,1408.9,1408.8,24.90769]
[1673620811624,0.09987857,1408.9,1408.8,27.96169]
[1673620815187,0.13578005,1409.2,1408.8,31.56802272]
[1673620815356,0.13578005,1409.2,1408.9,13.13527648]
[1673620815567,0.13578005,1409.2,1409.0,29.70244765]
[1673620815802,0.13578005,1409.2,1409.1,2.5]